fUST/lending_fUST_20251003
["ID","MTS","AMOUNT","RATE_DAILY","PERIOD"]
[388855415,1759429195579,-500.0,0.00019178,2]
[388855416,1759429195603,-500.0,0.00019178,2]
[388855417,1759429195629,-1029.96,0.00019178,2]
[388855418,1759429195653,-654.86,0.00019178,2]
[388855419,1759429195677,-1029.96,0.00019178,2]
[388855420,1759429195705,-1029.96,0.00019178,2]
[388855421,1759429195729,-1029.96,0.00019178,2]
[388855422,1759429195753,-1029.96,0.00019178,2]
[388855423,1759429195776,-1029.96,0.00019178,2]
[388855424,1759429195800,-500.0,0.00019178,2]
[388855425,1759429195824,-1029.96,0.00019178,2]
[388855426,1759429195848,-1029.96,0.00019178,2]
[388855427,1759429195871,-656.28,0.00019178,2]
[388855428,1759429195895,-1029.96,0.00019178,2]
[388855429,1759429195919,-1029.96,0.00019178,2]
[388855430,1759429195943,-500.0,0.00019178,2]
[388855431,1759429195968,-1029.96,0.00019178,2]
[388855432,1759429195993,-1029.96,0.00019178,2]
[388855433,1759429196017,-1029.96,0.00019178,2]
[388855434,1759429196041,-1030.12241812,0.00019178,2]
[388855435,1759429196066,-1110.78,0.00019178,2]
[388855436,1759429196089,-500.0,0.00019178,2]
[388855437,1759429196114,-500.0,0.00019178,2]
[388855438,1759429196139,-558.55,0.00019178,2]
[388855439,1759429196162,-587.09,0.00019178,2]
[388855440,1759429196187,-2838.41,0.00019178,2]
[388855441,1759429196212,-500.0,0.00019178,2]
[388855442,1759429196236,-500.0,0.00019178,2]
[388855443,1759429196261,-500.0,0.00019178,2]
[388855444,1759429196285,-500.0,0.00019178,2]
[388855445,1759429196310,-558.06,0.00019178,2]
[388855446,1759429196335,-500.0,0.00019178,2]
[388855447,1759429196360,-622.11,0.00019178,2]
[388855448,1759429196386,-1185.92,0.00019178,2]
[388855449,1759429196411,-500.0,0.00019178,2]
[388855450,1759429196437,-962.39,0.00019178,2]
[388855451,1759429196461,-999.87,0.00019178,2]
[388855452,1759429196485,-500.0,0.00019178,2]
[388855453,1759429196510,-500.0,0.00019178,2]
[388855454,1759429196702,-500.0,0.00019178,2]
[388855455,1759429196727,-1237.73,0.00019178,2]
[388855456,1759429196752,-500.0,0.00019178,2]
[388855457,1759429196775,-1095.97,0.00019178,2]
[388855458,1759429196800,-643.51,0.00019178,2]
[388855459,1759429196825,-500.0,0.00019178,2]
[388855460,1759429196849,-1232.36,0.00019178,2]
[388855461,1759429196874,-500.0,0.00019178,2]
[388855462,1759429196903,-500.0,0.00019178,2]
[388855463,1759429196931,-500.0,0.00019178,2]
[388855464,1759429196961,-640.26,0.00019178,2]
[388855465,1759429196991,-500.0,0.00019178,2]
[388855466,1759429197019,-680.69,0.00019178,2]
[388855467,1759429197045,-565.34,0.00019178,2]
[388855468,1759429197071,-3238.72,0.00019178,2]
[388855469,1759429197096,-888.98,0.00019178,2]
[388855470,1759429197121,-500.0,0.00019178,2]
[388855471,1759429197147,-658.43,0.00019178,2]
[388855472,1759429197170,-500.0,0.00019178,2]
[388855473,1759429197195,-500.0,0.00019178,2]
[388855474,1759429197219,-602.87,0.00019178,2]
[388855475,1759429197244,-500.0,0.00019178,2]
[388855476,1759429197267,-500.0,0.00019178,2]
[388855477,1759429197291,-500.0,0.00019178,2]
[388855478,1759429197314,-482.78294164,0.00019178,2]
[388855479,1759429197339,-4612.2,0.00019178,2]
[388855480,1759429197362,-871.27,0.00019178,2]
[388855481,1759429197386,-631.61,0.00019178,2]
[388855482,1759429197411,-1842.12,0.00019178,2]
[388855483,1759429197435,-483.08376674,0.00019178,2]
[388855484,1759429197459,-500.0,0.00019178,2]
[388855485,1759429197484,-656.58,0.00019178,2]
[388855486,1759429197508,-1948.88,0.00019178,2]
[388855487,1759429197533,-1283.68,0.00019178,2]
[388855488,1759429197558,-500.0,0.00019178,2]
[388855489,1759429197582,-500.0,0.00019178,2]
[388855490,1759429197611,-500.0,0.00019178,2]
[388855491,1759429197637,-816.98,0.00019178,2]
[388855492,1759429197663,-2129.76,0.00019178,2]
[388855493,1759429197688,-778.61,0.00019178,2]
[388855494,1759429197712,-500.0,0.00019178,2]
[388855495,1759429197737,-500.0,0.00019178,2]
[388855496,1759429197761,-500.0,0.00019178,2]
[388855497,1759429197785,-971.76,0.00019178,2]
[388855498,1759429197810,-828.11,0.00019178,2]
[388855499,1759429197834,-500.0,0.00019178,2]
[388855500,1759429197858,-649.41,0.00019178,2]
[388855501,1759429197882,-500.0,0.00019178,2]
[388855502,1759429197906,-500.0,0.00019178,2]
[388855503,1759429197933,-3510.53,0.00019178,2]
[388855504,1759429197958,-500.0,0.00019178,2]
[388855505,1759429197983,-500.0,0.00019178,2]
[388855506,1759429198007,-482.83488005,0.00019178,2]
[388855507,1759429198031,-500.0,0.00019178,2]
[388855508,1759429198055,-670.05,0.00019178,2]
[388855509,1759429198080,-4016.11801151,0.00019178,2]
[388855525,1759429535116,-245.93622948,0.00018743,2]
[388855526,1759429535136,-1000.0,0.00018743,2]
[388855527,1759429535158,-254.98531796,0.00019077,2]
[388855528,1759429535179,-1000.0,0.00019143,2]
[388855529,1759429535200,-300.0,0.00019168,2]
[388855530,1759429535221,-36355.79633393,0.00019169,2]
[388855531,1759429535244,-179.53183509,0.00019177,2]
[388855532,1759429535265,-152.79295699,0.00019177,2]
[388855533,1759429535286,-555.61,0.00019178,2]
[388855534,1759429535308,-500.0,0.00019178,2]
[388855535,1759429535328,-1012.07,0.00019178,2]
[388855536,1759429535349,-484.11988288,0.00019178,2]
[388855537,1759429535369,-733.78,0.00019178,2]
[388855538,1759429535390,-500.0,0.00019178,2]
[388855539,1759429535411,-258.19653826,0.00019178,2]
[388855540,1759429535431,-637.3,0.00019178,2]
[388855541,1759429535451,-151.0,0.00019178,2]
[388855542,1759429535471,-653.1,0.00019178,2]
[388855543,1759429535492,-500.0,0.00019178,2]
[388855544,1759429535513,-151.0,0.00019178,2]
[388855545,1759429535545,-500.0,0.00019178,2]
[388855546,1759429535569,-1170.65,0.00019178,2]
[388855547,1759429535592,-283.27551546,0.00019178,2]
[388855548,1759429535614,-500.0,0.00019178,2]
[388855549,1759429535636,-560.26,0.00019178,2]
[388855550,1759429535658,-500.0,0.00019178,2]
[388855551,1759429535680,-500.0,0.00019178,2]
[388855552,1759429535708,-445.8671931,0.00019178,2]
[388855553,1759429535730,-546.29895876,0.00019178,2]
[388855554,1759429535755,-500.0,0.00019178,2]
[388855555,1759429535777,-500.0,0.00019178,2]
[388855556,1759429535799,-500.0,0.00019178,2]
[388855557,1759429535821,-500.0,0.00019178,2]
[388855558,1759429535843,-500.0,0.00019178,2]
[388855559,1759429535863,-500.0,0.00019178,2]
[388855560,1759429535884,-500.0,0.00019178,2]
[388855561,1759429535906,-552.75,0.00019178,2]
[388855562,1759429535927,-464.35759639,0.00019178,2]
[388855563,1759429535947,-500.0,0.00019178,2]
[388855564,1759429535967,-500.0,0.00019178,2]
[388855565,1759429535987,-500.0,0.00019178,2]
[388855566,1759429536008,-500.0,0.00019178,2]
[388855567,1759429536027,-500.0,0.00019178,2]
[388855568,1759429536048,-500.0,0.00019178,2]
[388855569,1759429536068,-500.0,0.00019178,2]
[388855570,1759429536087,-1072.48,0.00019178,2]
[388855571,1759429536108,-500.0,0.00019178,2]
[388855572,1759429536129,-500.0,0.00019178,2]
[388855573,1759429536149,-1307.79,0.00019178,2]
[388855574,1759429536170,-500.0,0.00019178,2]
[388855575,1759429536192,-1756.59,0.00019178,2]
[388855576,1759429536213,-646.21,0.00019178,2]
[388855577,1759429536240,-584.16,0.00019178,2]
[388855578,1759429536262,-500.0,0.00019178,2]
[388855579,1759429536284,-500.0,0.00019178,2]
[388855580,1759429536305,-500.0,0.00019178,2]
[388855581,1759429536326,-500.0,0.00019178,2]
[388855582,1759429536348,-4130.26,0.00019178,2]
[388855583,1759429536370,-1088.58,0.00019178,2]
[388855584,1759429536391,-500.0,0.00019178,2]
[388855585,1759429536413,-500.0,0.00019178,2]
[388855586,1759429536435,-1108.09,0.00019178,2]
[388855587,1759429536455,-1562.12,0.00019178,2]
[388855588,1759429536476,-868.12,0.00019178,2]
[388855589,1759429536498,-918.06,0.00019178,2]
[388855590,1759429536519,-464.37030796,0.00019178,2]
[388855591,1759429536540,-522.4,0.00019178,2]
[388855592,1759429536561,-500.0,0.00019178,2]
[388855593,1759429536582,-500.0,0.00019178,2]
[388855594,1759429536602,-500.0,0.00019178,2]
[388855595,1759429536623,-500.0,0.00019178,2]
[388855596,1759429536642,-798.86,0.00019178,2]
[388855597,1759429536662,-500.0,0.00019178,2]
[388855598,1759429536682,-531.96,0.00019178,2]
[388855599,1759429536706,-463.17926255,0.00019178,2]
[388855600,1759429536726,-305.59460895,0.00019178,2]
[388855601,1759429536748,-500.0,0.00019178,2]
[388855602,1759429536771,-3190.62,0.00019178,2]
[388855603,1759429536792,-596.19,0.00019178,2]
[388855604,1759429536812,-500.0,0.00019178,2]
[388855605,1759429536832,-466.09309983,0.00019178,2]
[388855606,1759429536853,-500.0,0.00019178,2]
[388855607,1759429536878,-500.0,0.00019178,2]
[388855608,1759429536899,-500.0,0.00019178,2]
[388855609,1759429536919,-500.0,0.00019178,2]
[388855610,1759429536941,-1260.38,0.00019178,2]
[388855611,1759429536962,-1686.22,0.00019178,2]
[388855612,1759429536987,-2666.53,0.00019178,2]
[388855613,1759429537008,-500.0,0.00019178,2]
[388855614,1759429537029,-500.0,0.00019178,2]
[388855615,1759429537049,-500.0,0.00019178,2]
[388855616,1759429537069,-788.47,0.00019178,2]
[388855617,1759429537090,-791.79,0.00019178,2]
[388855618,1759429537109,-500.0,0.00019178,2]
[388855619,1759429537131,-716.66,0.00019178,2]
[388855620,1759429537151,-500.0,0.00019178,2]
[388855621,1759429537171,-1765.36,0.00019178,2]
[388855622,1759429537191,-500.0,0.00019178,2]
[388855623,1759429537211,-500.0,0.00019178,2]
[388855624,1759429537231,-500.0,0.00019178,2]
[388855625,1759429537252,-1622.06,0.00019178,2]
[388855626,1759429537272,-986.12,0.00019178,2]
[388855627,1759429537292,-500.0,0.00019178,2]
[388855628,1759429537312,-782.94,0.00019178,2]
[388855629,1759429537333,-1325.39,0.00019178,2]
[388855630,1759429537353,-500.0,0.00019178,2]
[388855631,1759429537373,-500.0,0.00019178,2]
[388855632,1759429537395,-1990.43,0.00019178,2]
[388855633,1759429537416,-416.38121076,0.00019178,2]
[388855634,1759429537436,-477.88080786,0.00019178,2]
[388855635,1759429537456,-500.0,0.00019178,2]
[388855636,1759429537477,-931.27,0.00019178,2]
[388855637,1759429537498,-485.11933692,0.00019178,2]
[388855638,1759429537520,-641.76,0.00019178,2]
[388855639,1759429537540,-707.46,0.00019178,2]
[388855640,1759429537560,-500.0,0.00019178,2]
[388855641,1759429537581,-530.89,0.00019178,2]
[388855642,1759429537600,-468.98957929,0.00019178,2]
[388855643,1759429537621,-4660.89,0.00019178,2]
[388855644,1759429537640,-500.0,0.00019178,2]
[388855645,1759429537660,-675.41,0.00019178,2]
[388855646,1759429537680,-661.15,0.00019178,2]
[388855647,1759429537707,-1186.15,0.00019178,2]
[388855648,1759429537727,-500.0,0.00019178,2]
[388855649,1759429538044,-500.0,0.00019178,2]
[388855650,1759429538068,-3014.91,0.00019178,2]
[388855651,1759429538089,-500.0,0.00019178,2]
[388855652,1759429538110,-500.0,0.00019178,2]
[388855653,1759429538131,-500.0,0.00019178,2]
[388855654,1759429538151,-460.91221649,0.00019178,2]
[388855655,1759429538176,-500.0,0.00019178,2]
[388855656,1759429538195,-446.85673802,0.00019178,2]
[388855657,1759429538215,-500.0,0.00019178,2]
[388855658,1759429538235,-661.99,0.00019178,2]
[388855659,1759429538256,-1194.33,0.00019178,2]
[388855660,1759429538277,-533.13401485,0.00019178,2]
[388855661,1759429538298,-574.16498508,0.00019178,2]
[388855662,1759429538320,-402.57162137,0.00019178,2]
[388855663,1759429538348,-500.0,0.00019178,2]
[388855664,1759429538369,-500.0,0.00019178,2]
[388855665,1759429538390,-362.77984268,0.00019178,2]
[388855666,1759429538412,-1337.33,0.00019178,2]
[388855667,1759429538439,-500.0,0.00019178,2]
[388855668,1759429538461,-500.0,0.00019178,2]
[388855669,1759429538484,-500.0,0.00019178,2]
[388855670,1759429538506,-500.0,0.00019178,2]
[388855671,1759429538527,-500.0,0.00019178,2]
[388855672,1759429538548,-500.0,0.00019178,2]
[388855673,1759429538569,-500.0,0.00019178,2]
[388855674,1759429538590,-1324.15,0.00019178,2]
[388855675,1759429538611,-500.0,0.00019178,2]
[388855676,1759429538634,-610.8,0.00019178,2]
[388855677,1759429538655,-500.0,0.00019178,2]
[388855678,1759429538677,-449.27505297,0.00019178,2]
[388855679,1759429538704,-2138.59,0.00019178,2]
[388855680,1759429538726,-500.0,0.00019178,2]
[388855681,1759429538750,-1050.3,0.00019178,2]
[388855682,1759429538772,-500.0,0.00019178,2]
[388855683,1759429538792,-500.0,0.00019178,2]
[388855684,1759429538813,-500.0,0.00019178,2]
[388855685,1759429538834,-500.0,0.00019178,2]
[388855686,1759429538856,-1619.82,0.00019178,2]
[388855687,1759429538877,-874.88,0.00019178,2]
[388855688,1759429538898,-500.0,0.00019178,2]
[388855689,1759429538919,-211.591338,0.00019178,2]
[388855690,1759429538939,-500.0,0.00019178,2]
[388855691,1759429538959,-500.0,0.00019178,2]
[388855692,1759429538980,-500.0,0.00019178,2]
[388855693,1759429539000,-466.30123944,0.00019178,2]
[388855694,1759429539021,-922.29,0.00019178,2]
[388855695,1759429539042,-500.0,0.00019178,2]
[388855696,1759429539062,-583.61,0.00019178,2]
[388855697,1759429539083,-3071.78299968,0.00019178,2]
[388855712,1759429609101,-1224.33,0.00019168,3]
[388855713,1759429609132,-612.16,0.00019168,3]
[388855714,1759429609161,-306.08,0.00019168,3]
[388855715,1759429609191,-153.04,0.00019168,3]
[388855716,1759429609217,-459.17,0.00019168,3]
[388855717,1759429609243,-300.0,0.00019177,2]
[388855718,1759429609271,-292.47700032,0.00019178,2]
[388855719,1759429609296,-500.0,0.00019178,2]
[388855720,1759429609319,-1230.19,0.00019178,2]
[388855721,1759429609344,-500.0,0.00019178,2]
[388855722,1759429609372,-500.0,0.00019178,2]
[388855723,1759429609398,-500.0,0.00019178,2]
[388855724,1759429609426,-2110.38,0.00019178,2]
[388855725,1759429609451,-500.0,0.00019178,2]
[388855726,1759429609472,-500.0,0.00019178,2]
[388855727,1759429609499,-500.0,0.00019178,2]
[388855728,1759429609527,-500.0,0.00019178,2]
[388855729,1759429609553,-631.0,0.00019178,2]
[388855730,1759429609578,-1000.0,0.00019178,2]
[388855731,1759429609602,-834.46,0.00019178,2]
[388855732,1759429609630,-849.05844868,0.00019178,2]
[388855735,1759429629144,-3594.65155132,0.00019178,2]
[388855736,1759429629165,-500.0,0.00019178,2]
[388855737,1759429629186,-218.71739117,0.00019178,2]
[388855738,1759429629208,-500.0,0.00019178,2]
[388855739,1759429629230,-500.0,0.00019178,2]
[388855740,1759429629252,-564.52,0.00019178,2]
[388855741,1759429629273,-500.0,0.00019178,2]
[388855742,1759429629294,-1134.24,0.00019178,2]
[388855743,1759429629316,-500.0,0.00019178,2]
[388855744,1759429629618,-500.0,0.00019178,2]
[388855745,1759429629639,-2528.18,0.00019178,2]
[388855746,1759429629659,-500.0,0.00019178,2]
[388855747,1759429629679,-629.75,0.00019178,2]
[388855748,1759429629704,-2426.82,0.00019178,2]
[388855749,1759429629725,-500.0,0.00019178,2]
[388855750,1759429629748,-500.0,0.00019178,2]
[388855751,1759429629770,-500.0,0.00019178,2]
[388855752,1759429629790,-500.0,0.00019178,2]
[388855753,1759429629811,-500.0,0.00019178,2]
[388855754,1759429629833,-500.0,0.00019178,2]
[388855755,1759429629853,-713.76,0.00019178,2]
[388855756,1759429629872,-500.0,0.00019178,2]
[388855757,1759429629892,-500.0,0.00019178,2]
[388855758,1759429629911,-997.58,0.00019178,2]
[388855759,1759429629931,-500.0,0.00019178,2]
[388855760,1759429629955,-482.61603953,0.00019178,2]
[388855761,1759429629976,-1101.79,0.00019178,2]
[388855762,1759429629997,-2361.7,0.00019178,2]
[388855763,1759429630018,-713.95,0.00019178,2]
[388855764,1759429630039,-500.0,0.00019178,2]
[388855765,1759429630058,-1122.86,0.00019178,2]
[388855766,1759429630079,-935.58,0.00019178,2]
[388855767,1759429630100,-500.0,0.00019178,2]
[388855768,1759429630119,-1193.5,0.00019178,2]
[388855769,1759429630139,-407.52047975,0.00019178,2]
[388855770,1759429630165,-500.0,0.00019178,2]
[388855771,1759429630189,-967.15,0.00019178,2]
[388855772,1759429630213,-500.0,0.00019178,2]
[388855773,1759429630235,-500.0,0.00019178,2]
[388855774,1759429630269,-466.64724551,0.00019178,2]
[388855775,1759429630295,-861.56,0.00019178,2]
[388855776,1759429630317,-500.0,0.00019178,2]
[388855777,1759429630340,-480.76835475,0.00019178,2]
[388855778,1759429630363,-500.0,0.00019178,2]
[388855779,1759429630384,-444.11895346,0.00019178,2]
[388855780,1759429630406,-1094.44,0.00019178,2]
[388855781,1759429630428,-500.0,0.00019178,2]
[388855782,1759429630450,-500.0,0.00019178,2]
[388855783,1759429630472,-2181.65,0.00019178,2]
[388855784,1759429630493,-500.0,0.00019178,2]
[388855785,1759429630515,-500.0,0.00019178,2]
[388855786,1759429630535,-500.0,0.00019178,2]
[388855787,1759429630558,-512.93,0.00019178,2]
[388855788,1759429630581,-500.0,0.00019178,2]
[388855789,1759429630605,-500.0,0.00019178,2]
[388855790,1759429630633,-898.45,0.00019178,2]
[388855791,1759429630656,-500.0,0.00019178,2]
[388855792,1759429630679,-18937.5425242,0.00019178,2]
[388855793,1759429630702,-500.0,0.00019178,2]
[388855794,1759429630729,-482.61149043,0.00019178,2]
[388855795,1759429630758,-514.66,0.00019178,2]
[388855796,1759429630782,-440.07415345,0.00019178,2]
[388855797,1759429630804,-752.46,0.00019178,2]
[388855798,1759429630828,-500.0,0.00019178,2]
[388855799,1759429630848,-500.0,0.00019178,2]
[388855800,1759429630869,-585.2,0.00019178,2]
[388855801,1759429630889,-500.0,0.00019178,2]
[388855802,1759429630911,-11732.21,0.00019178,2]
[388855803,1759429630933,-502.72,0.00019178,2]
[388855804,1759429630959,-799.86,0.00019178,2]
[388855805,1759429630980,-500.0,0.00019178,2]
[388855806,1759429631001,-466.94738736,0.00019178,2]
[388855807,1759429631024,-1677.26,0.00019178,2]
[388855808,1759429631047,-512.5,0.00019178,2]
[388855809,1759429631071,-500.0,0.00019178,2]
[388855810,1759429631099,-1281.7,0.00019178,2]
[388855811,1759429631126,-500.0,0.00019178,2]
[388855812,1759429631150,-500.0,0.00019178,2]
[388855813,1759429631173,-500.0,0.00019178,2]
[388855814,1759429631195,-500.0,0.00019178,2]
[388855815,1759429631218,-2668.22,0.00019178,2]
[388855816,1759429631240,-500.0,0.00019178,2]
[388855817,1759429631261,-500.0,0.00019178,2]
[388855818,1759429631282,-851.75,0.00019178,2]
[388855819,1759429631305,-705.81,0.00019178,2]
[388855820,1759429631329,-1035.67,0.00019178,2]
[388855821,1759429631350,-2046.7,0.00019178,2]
[388855822,1759429631373,-500.0,0.00019178,2]
[388855823,1759429631393,-838.32,0.00019178,2]
[388855824,1759429631415,-1425.25,0.00019178,2]
[388855825,1759429631436,-610.74088731,0.00019178,2]
[388855826,1759429631457,-1664.82,0.00019178,2]
[388855827,1759429631477,-500.0,0.00019178,2]
[388855828,1759429631497,-6318.42,0.00019178,2]
[388855829,1759429631521,-500.0,0.00019178,2]
[388855830,1759429631542,-520.78,0.00019178,2]
[388855831,1759429631562,-500.0,0.00019178,2]
[388855832,1759429631586,-952.61,0.00019178,2]
[388855833,1759429631607,-500.0,0.00019178,2]
[388855834,1759429631627,-465.9792447,0.00019178,2]
[388855835,1759429631648,-500.0,0.00019178,2]
[388855836,1759429631668,-500.0,0.00019178,2]
[388855837,1759429631689,-500.0,0.00019178,2]
[388855838,1759429631710,-493.38843519,0.00019178,2]
[388855839,1759429631735,-3576.8,0.00019178,2]
[388855840,1759429631755,-591.85,0.00019178,2]
[388855841,1759429631777,-1424.69,0.00019178,2]
[388855842,1759429631798,-500.0,0.00019178,2]
[388855843,1759429631822,-500.0,0.00019178,2]
[388855844,1759429631843,-500.0,0.00019178,2]
[388855845,1759429631864,-500.0,0.00019178,2]
[388855846,1759429631885,-2402.62,0.00019178,2]
[388855847,1759429631907,-243.644425,0.00019178,2]
[388855848,1759429631928,-947.23,0.00019178,2]
[388855849,1759429631949,-1064.7,0.00019178,2]
[388855850,1759429631971,-4366.79379587,0.00019178,2]
[388855852,1759429637081,-766.87620413,0.00019178,2]
[388855853,1759429637101,-1552.33,0.00019178,2]
[388855854,1759429637121,-500.0,0.00019178,2]
[388855855,1759429637141,-1497.03,0.00019178,2]
[388855856,1759429637161,-464.02925425,0.00019178,2]
[388855857,1759429637181,-765.58,0.00019178,2]
[388855858,1759429637201,-500.0,0.00019178,2]
[388855859,1759429637222,-1328.0,0.00019178,2]
[388855860,1759429637242,-1040.22,0.00019178,2]
[388855861,1759429637261,-500.0,0.00019178,2]
[388855862,1759429637282,-500.0,0.00019178,2]
[388855863,1759429637302,-500.0,0.00019178,2]
[388855864,1759429637322,-3057.67,0.00019178,2]
[388855865,1759429637344,-500.0,0.00019178,2]
[388855866,1759429637364,-616.69,0.00019178,2]
[388855867,1759429637383,-500.0,0.00019178,2]
[388855868,1759429637402,-500.0,0.00019178,2]
[388855869,1759429637422,-500.0,0.00019178,2]
[388855870,1759429637442,-500.0,0.00019178,2]
[388855871,1759429637462,-500.0,0.00019178,2]
[388855872,1759429637481,-1123.86,0.00019178,2]
[388855873,1759429637502,-541.78,0.00019178,2]
[388855874,1759429637524,-1000.24,0.00019178,2]
[388855875,1759429637545,-500.0,0.00019178,2]
[388855876,1759429637566,-1207.86,0.00019178,2]
[388855877,1759429637588,-500.0,0.00019178,2]
[388855878,1759429637607,-500.0,0.00019178,2]
[388855879,1759429637627,-456.59258562,0.00019178,2]
[388855885,1759429654087,-43.40741438,0.00019178,2]
[388855886,1759429654110,-500.0,0.00019178,2]
[388855887,1759429654130,-2337.12,0.00019178,2]
[388855888,1759429654150,-500.0,0.00019178,2]
[388855889,1759429654171,-500.0,0.00019178,2]
[388855890,1759429654190,-693.2,0.00019178,2]
[388855891,1759429654211,-500.0,0.00019178,2]
[388855892,1759429654232,-500.0,0.00019178,2]
[388855893,1759429654252,-273.14267887,0.00019178,2]
[388855894,1759429654272,-500.0,0.00019178,2]
[388855895,1759429654294,-500.0,0.00019178,2]
[388855896,1759429654315,-500.0,0.00019178,2]
[388855897,1759429654335,-500.0,0.00019178,2]
[388855898,1759429654356,-500.0,0.00019178,2]
[388855899,1759429654377,-500.0,0.00019178,2]
[388855900,1759429654398,-4420.03,0.00019178,2]
[388855901,1759429654422,-7174.42,0.00019178,2]
[388855902,1759429654451,-524.9,0.00019178,2]
[388855903,1759429654473,-500.0,0.00019178,2]
[388855904,1759429654493,-500.0,0.00019178,2]
[388855905,1759429654513,-500.0,0.00019178,2]
[388855906,1759429654533,-500.0,0.00019178,2]
[388855907,1759429654554,-500.0,0.00019178,2]
[388855908,1759429654574,-500.0,0.00019178,2]
[388855909,1759429654593,-500.0,0.00019178,2]
[388855910,1759429654614,-500.0,0.00019178,2]
[388855911,1759429654635,-3103.78,0.00019178,2]
[388855912,1759429654655,-500.0,0.00019178,2]
[388855913,1759429654674,-500.0,0.00019178,2]
[388855914,1759429654695,-500.0,0.00019178,2]
[388855915,1759429654715,-1180.24,0.00019178,2]
[388855916,1759429654739,-500.0,0.00019178,2]
[388855917,1759429654760,-500.0,0.00019178,2]
[388855918,1759429654780,-500.0,0.00019178,2]
[388855919,1759429654801,-1006.54,0.00019178,2]
[388855920,1759429654822,-500.0,0.00019178,2]
[388855921,1759429654844,-1867.68,0.00019178,2]
[388855922,1759429654864,-500.0,0.00019178,2]
[388855923,1759429654885,-2663.37,0.00019178,2]
[388855924,1759429654905,-1078.31,0.00019178,2]
[388855925,1759429654928,-483.0,0.00019178,2]
[388855926,1759429654955,-500.0,0.00019178,2]
[388855927,1759429654976,-500.0,0.00019178,2]
[388855928,1759429654997,-500.0,0.00019178,2]
[388855929,1759429655017,-876.29,0.00019178,2]
[388855930,1759429655037,-746.16,0.00019178,2]
[388855931,1759429655058,-500.0,0.00019178,2]
[388855932,1759429655081,-500.0,0.00019178,2]
[388855933,1759429655102,-1483.5,0.00019178,2]
[388855934,1759429655128,-500.0,0.00019178,2]
[388855935,1759429655150,-152.88440202,0.00019178,2]
[388855936,1759429655170,-642.13,0.00019178,2]
[388855937,1759429655190,-500.0,0.00019178,2]
[388855938,1759429655211,-500.0,0.00019178,2]
[388855939,1759429655232,-629.23,0.00019178,2]
[388855940,1759429655253,-500.0,0.00019178,2]
[388855941,1759429655273,-151.0,0.000194,2]
[388855942,1759429655293,-500.0,0.00019446,2]
[388855943,1759429655313,-546.17,0.00019446,2]
[388855944,1759429655334,-500.0,0.00019446,2]
[388855945,1759429655356,-500.0,0.00019446,2]
[388855946,1759429655376,-500.0,0.00019446,2]
[388855947,1759429655396,-911.17,0.00019446,2]
[388855948,1759429655417,-3432.03,0.00019446,2]
[388855949,1759429655438,-500.0,0.00019446,2]
[388855950,1759429655459,-748.4,0.00019446,2]
[388855951,1759429655479,-500.0,0.00019446,2]